[Event "Groningen Festival 2019-A"]
[Site "Groningen"]
[Date "2019.12.28"]
[Round "7.12"]
[White "Hilverda, Alexander"]
[Black "Kokje, Joris"]
[Result "1-0"]
[ECO "E97"]
[WhiteElo "2294"]
[BlackElo "2222"]
[Annotator "NA"]
[PlyCount "99"]
[EventDate "2019.12.15"]
[EventType "swiss"]
[EventCountry "NED"]
[SourceTitle "playchess.com"]
[Source "ChessBase"]
[SourceQuality "1"]
[TimeControl "40/5400+30:1800+30"]

1. d4 {[%emt 0:00:00]} Nf6 {[%emt 0:00:00]} 2. c4 {[%emt 0:00:00]} g6 {[%emt 0:00:00]} 3. Nc3 {[%emt 0:00:00]} Bg7 {[%emt 0:00:00]} 4. e4 {[%emt 0:00:00]} d6 {[%emt 0:00:00]} 5. Nf3 {[%emt 0:00:00]} O-O {[%emt 0:00:06]} 6. Be2 {[%emt 0:00:00]} e5 {[%emt 0:00:19]} 7. O-O {[%emt 0:00:06]} Nc6 {[%emt 0:00:05]} 8. d5 {[%emt 0:00:22]} Ne7 {[%emt 0:00:07]} 9. b4 {[%emt 0:00:04]} Ne8 {[%emt 0:00:13]} 10. c5 {[%emt 0:00:50]} f5 {[%emt 0:00:07]} 11. Nd2 {[%emt 0:00:30]} Nf6 {[%emt 0:00:37]} 12. a4 {[%emt 0:00:12]} f4 {[%emt 0:00:45]} 13. Nc4 {[%emt 0:00:22]} g5 {[%emt 0:04:22]} 14. Nb5 {[%emt 0:00:06]} Ne8 {[%emt 0:11:26]} 15. Ba3 {[%emt 0:01:11]} a6 {[%emt 0:05:26]} 16. Nc3 {[%emt 0:03:11]} Ng6 {[%emt 0:01:47]} 17. Bg4 {[%emt 0:05:52]} Nh4 {[%emt 0:05:22]} 18. Bxc8 {[%emt 0:02:42]} Qxc8 {[%emt 0:00:50]} 19. f3 {[%emt 0:01:25]} Rf6 {[%emt 0:09:16]} 20. b5 {[%emt 0:13:47]} Rg6 {[%emt 0:04:35]} 21. Ra2 {[%emt 0:08:26]} axb5 {[%emt 0:07:48]} 22. Nxb5 {[%emt 0:00:59]} g4 {[%emt 0:00:48]} 23. fxg4 {[%emt 0:07:35]} Rxg4 {[%emt 0:08:31]} 24. cxd6 {[%emt 0:08:49]} Ra6 {[%emt 0:02:24]} 25. Kh1 {[%emt 0:05:49]} cxd6 {[%emt 0:01:58]} 26. Ncxd6 {[%emt 0:04:12]} Nxd6 {[%emt 0:00:16]} 27. Nxd6 {[%emt 0:01:22]} Qd7 {[%emt 0:01:31]} 28. Rff2 {[%emt 0:07:35]} h5 {[%emt 0:05:42]} 29. Qb3 {[%emt 0:09:31]} Rxd6 {[%emt 0:06:59]} 30. Bxd6 {[%emt 0:00:05]} Qxd6 {[%emt 0:00:02]} 31. Qxb7 {[%emt 0:00:13]} Qc5 {[%emt 0:01:36]} 32. Qb1 {[%emt 0:06:24]} Bf8 {[%emt 0:10:43]} 33. a5 {[%emt 0:01:13]} Rg7 {[%emt 0:00:13]} 34. a6 {[%emt 0:01:45]} Qe3 {[%emt 0:01:23]} 35. Rfe2 {[%emt 0:01:34]} Qa7 {[%emt 0:01:44]} 36. Reb2 {[%emt 0:04:10]} Qe3 {[%emt 0:03:51]} 37. Rb3 {[%emt 0:00:39]} Qd4 {[%emt 0:00:09]} 38. Rh3 {[%emt 0:05:02]} Ng6 {[%emt 0:01:51]} 39. Rxh5 {[%emt 0:02:13]} Rc7 {[%emt 0:03:43]} 40. Ra1 {[%emt 0:01:03]} Kg7 {[%emt 0:02:04]} 41. Rh3 {[%emt 0:01:50]} Bc5 {[%emt 0:05:11]} 42. Rb3 {[%emt 0:01:34]} Kf6 {[%emt 0:01:15]} 43. Rb7 {[%emt 0:03:46]} Rc8 {[%emt 0:00:07]} 44. a7 {[%emt 0:01:49]} f3 {[%emt 0:05:46]} 45. Qf1 {[%emt 0:04:30]} Nf4 {[%emt 0:01:56]} 46. Qa6+ {[%emt 0:02:23]} Kg5 {[%emt 0:01:00]} 47. Rg7+ {[%emt 0:00:22]} Kh5 {[%emt 0:00:12]} 48. g4+ {[%emt 0:00:13]} Kh4 {[%emt 0:00:13]} 49. Qh6+ {[%emt 0:00:09]} Nh5 {[%emt 0:00:07]} 50. Qxh5# {[%emt 0:00:05]} 1-0

[Event "Groningen Festival 2019-A"]
[Site "Groningen"]
[Date "2019.12.29"]
[Round "8.1"]
[White "Vrolijk, Liam"]
[Black "Fier, Alexandr"]
[Result "1-0"]
[ECO "D90"]
[WhiteElo "2467"]
[BlackElo "2528"]
[Annotator "ChessBase"]
[PlyCount "59"]
[EventDate "2019.12.15"]
[EventType "swiss"]
[EventCountry "NED"]
[SourceTitle "playchess.com"]
[Source "ChessBase"]
[SourceQuality "1"]
[TimeControl "40/5400+30:1800+30"]

1. d4 {[%emt 0:08:31]} Nf6 {[%emt 0:00:00]} 2. c4 {[%emt 0:00:28]} g6 {[%emt 0:00:00]} 3. Nc3 {[%emt 0:00:12]} d5 {[%emt 0:00:00]} 4. Nf3 {[%emt 0:00:10]} Bg7 {[%emt 0:00:00]} 5. h4 {[%emt 0:00:10]} dxc4 {[%emt 0:03:20]} 6. e4 {[%emt 0:00:28]} c5 {[%emt 0:00:02]} 7. d5 {[%emt 0:00:15]} b5 {[%emt 0:00:04]} 8. h5 {[%emt 0:01:38]} O-O {[%emt 0:00:05]} 9. hxg6 {[%emt 0:00:21]} fxg6 {[%emt 0:00:04]} 10. Rh4 {[%emt 0:00:12]} e6 {[%emt 0:14:14]} 11. Nxb5 {[%emt 0:12:31]} exd5 {[%emt 0:01:38]} 12. Nc3 {[%emt 0:07:52]} Re8 {[%emt 0:11:46]} 13. Be3 {[%emt 0:12:41]} Nbd7 {[%emt 0:25:30]} 14. Nxd5 {[%emt 0:04:24]} Ba6 {[%emt 0:00:05]} 15. Nxf6+ {[%emt 0:14:23]} Nxf6 {[%emt 0:07:53]} 16. Qa4 {[%emt 0:05:09]} Qb6 {[%emt 0:02:40]} 17. Bxc4+ {[%emt 0:00:11]} Bxc4 {[%emt 0:00:03]} 18. Qxc4+ {[%emt 0:00:08]} Kh8 {[%emt 0:00:03]} 19. Ng5 {[%emt 0:05:23]} h5 {[%emt 0:00:04]} 20. Nf7+ {[%emt 0:00:13]} Kh7 {[%emt 0:00:03]} 21. Ng5+ {[%emt 0:00:37]} Kh8 {[%emt 0:00:03]} 22. e5 {[%emt 0:02:46]} Qxb2 {[%emt 0:01:57]} 23. Nf7+ {[%emt 0:00:39]} Kh7 {[%emt 0:00:04]} 24. Ng5+ {[%emt 0:00:10]} Kh8 {[%emt 0:00:02]} 25. Rd1 {[%emt 0:00:32]} Ng4 {[%emt 0:00:04]} 26. Qxg4 {[%emt 0:02:07]} Rxe5 {[%emt 0:00:03]} 27. Qe2 {[%emt 0:02:00]} Qc3+ {[%emt 0:00:39]} 28. Kf1 {[%emt 0:00:12]} Rf8 {[%emt 0:00:24]} 29. Rxh5+ {[%emt 0:01:25]} Kg8 {[%emt 0:00:05]} 30. Rh3 {[%emt 0:00:37]} 1-0

[Event "Groningen Festival 2019-A"]
[Site "Groningen"]
[Date "2019.12.29"]
[Round "8.2"]
[White "Poetsch, Hagen"]
[Black "Van Foreest, Lucas"]
[Result "1-0"]
[ECO "C58"]
[WhiteElo "2522"]
[BlackElo "2526"]
[Annotator "ChessBase"]
[PlyCount "83"]
[EventDate "2019.12.15"]
[EventType "swiss"]
[EventCountry "NED"]
[SourceTitle "playchess.com"]
[Source "ChessBase"]
[SourceQuality "1"]
[TimeControl "40/5400+30:1800+30"]

1. e4 {[%emt 0:06:33]} e5 {[%emt 0:01:07]} 2. Nf3 {[%emt 0:00:12]} Nc6 {[%emt 0:00:12]} 3. Bc4 {[%emt 0:00:08]} Nf6 {[%emt 0:00:05]} 4. Ng5 {[%emt 0:00:08]} d5 {[%emt 0:00:05]} 5. exd5 {[%emt 0:00:07]} Na5 {[%emt 0:00:02]} 6. Bb5+ {[%emt 0:00:08]} c6 {[%emt 0:00:04]} 7. dxc6 {[%emt 0:00:06]} bxc6 {[%emt 0:00:02]} 8. Bd3 {[%emt 0:00:13]} Nd5 {[%emt 0:00:13]} 9. h4 {[%emt 0:00:12]} Be7 {[%emt 0:00:06]} 10. Nc3 {[%emt 0:02:57]} Nf4 {[%emt 0:04:58]} 11. Bf1 {[%emt 0:01:13]} h6 {[%emt 0:00:14]} 12. Nf3 {[%emt 0:01:27]} Bg4 {[%emt 0:05:39]} 13. d4 {[%emt 0:09:51]} Ne6 {[%emt 0:18:07]} 14. dxe5 {[%emt 0:12:53]} Qxd1+ {[%emt 0:01:46]} 15. Nxd1 {[%emt 0:00:25]} Bxf3 {[%emt 0:00:15]} 16. gxf3 {[%emt 0:00:05]} Nd4 {[%emt 0:00:04]} 17. Ne3 {[%emt 0:11:17]} Nxf3+ {[%emt 0:00:07]} 18. Ke2 {[%emt 0:00:07]} Nxe5 {[%emt 0:00:23]} 19. b3 {[%emt 0:10:13]} O-O-O {[%emt 0:06:52]} 20. Bb2 {[%emt 0:02:58]} Bf6 {[%emt 0:02:47]} 21. Bg2 {[%emt 0:01:51]} Kc7 {[%emt 0:03:37]} 22. Rad1 {[%emt 0:03:53]} Nb7 {[%emt 0:00:17]} 23. h5 {[%emt 0:05:58]} Nc5 {[%emt 0:00:31]} 24. Bc3 {[%emt 0:01:18]} Rxd1 {[%emt 0:06:02]} 25. Ba5+ {[%emt 0:03:21]} Kb8 {[%emt 0:09:23]} 26. Rxd1 {[%emt 0:00:39]} Re8 {[%emt 0:00:57]} 27. Kf1 {[%emt 0:02:03]} Nb7 {[%emt 0:00:18]} 28. Bc3 {[%emt 0:01:41]} Kc7 {[%emt 0:05:29]} 29. Nf5 {[%emt 0:01:34]} Ng4 {[%emt 0:07:33]} 30. Nxg7 {[%emt 0:06:41]} Bxg7 {[%emt 0:01:14]} 31. Bxg7 {[%emt 0:00:06]} Rg8 {[%emt 0:00:07]} 32. Bc3 {[%emt 0:02:06]} Rg5 {[%emt 0:01:33]} 33. Bh3 {[%emt 0:03:58]} f5 {[%emt 0:05:15]} 34. Bd2 {[%emt 0:01:56]} Rxh5 {[%emt 0:01:07]} 35. Bf4+ {[%emt 0:00:21]} Kb6 {[%emt 0:00:36]} 36. Bg2 {[%emt 0:01:45]} Nc5 {[%emt 0:00:17]} 37. Rd6 {[%emt 0:04:38]} Ne4 {[%emt 0:00:15]} 38. Rg6 {[%emt 0:01:34]} Nexf2 {[%emt 0:03:04]} 39. Rxc6+ {[%emt 0:00:12]} Kb5 {[%emt 0:00:48]} 40. a4+ {[%emt 0:00:49]} Kb4 {[%emt 0:00:02]} 41. Bd6+ {[%emt 0:30:40]} Ka5 {[%emt 0:30:01]} 42. c3 {[%emt 0:00:00]} 1-0

[Event "Groningen Festival 2019-A"]
[Site "Groningen"]
[Date "2019.12.29"]
[Round "8.3"]
[White "Sargsyan, Shant"]
[Black "Lubbe, Nikolas"]
[Result "1-0"]
[ECO "D35"]
[WhiteElo "2601"]
[BlackElo "2451"]
[Annotator "ChessBase"]
[PlyCount "67"]
[EventDate "2019.12.15"]
[EventType "swiss"]
[EventCountry "NED"]
[SourceTitle "playchess.com"]
[Source "ChessBase"]
[SourceQuality "1"]
[TimeControl "40/5400+30:1800+30"]

1. d4 {[%emt 0:09:35]} d5 {[%emt 0:00:00]} 2. c4 {[%emt 0:00:08]} e6 {[%emt 0:00:00]} 3. Nc3 {[%emt 0:00:24]} Nf6 {[%emt 0:00:00]} 4. cxd5 {[%emt 0:00:35]} exd5 {[%emt 0:00:00]} 5. Bg5 {[%emt 0:00:11]} c6 {[%emt 0:00:04]} 6. e3 {[%emt 0:00:08]} Be7 {[%emt 0:00:11]} 7. Bd3 {[%emt 0:00:34]} Nbd7 {[%emt 0:00:15]} 8. h3 {[%emt 0:00:48]} Nf8 {[%emt 0:04:10]} 9. Nf3 {[%emt 0:03:37]} Ne6 {[%emt 0:01:19]} 10. Bh4 {[%emt 0:00:15]} g6 {[%emt 0:02:38]} 11. O-O {[%emt 0:01:16]} O-O {[%emt 0:05:36]} 12. Rb1 {[%emt 0:03:15]} Ng7 {[%emt 0:02:49]} 13. b4 {[%emt 0:00:29]} a6 {[%emt 0:03:56]} 14. Na4 {[%emt 0:03:18]} Nf5 {[%emt 0:03:34]} 15. Bg5 {[%emt 0:03:44]} Ne4 {[%emt 0:06:26]} 16. Bxe7 {[%emt 0:02:04]} Qxe7 {[%emt 0:03:53]} 17. Qc2 {[%emt 0:02:07]} Nfd6 {[%emt 0:08:08]} 18. Nc5 {[%emt 0:03:41]} f5 {[%emt 0:09:53]} 19. Ne5 {[%emt 0:11:24]} f4 {[%emt 0:05:50]} 20. exf4 {[%emt 0:05:58]} Rxf4 {[%emt 0:03:16]} 21. Rbe1 {[%emt 0:02:58]} Ng5 {[%emt 0:13:23]} 22. Nxg6 {[%emt 0:24:39]} Nxh3+ {[%emt 0:00:55]} 23. gxh3 {[%emt 0:00:39]} Qg5+ {[%emt 0:00:53]} 24. Kh2 {[%emt 0:00:05]} hxg6 {[%emt 0:05:43]} 25. Rg1 {[%emt 0:01:48]} Qh4 {[%emt 0:01:16]} 26. Rxg6+ {[%emt 0:00:39]} Kh8 {[%emt 0:05:29]} 27. Rg3 {[%emt 0:01:16]} Bg4 {[%emt 0:00:31]} 28. Reg1 {[%emt 0:03:00]} Qf6 {[%emt 0:02:12]} 29. Rxg4 {[%emt 0:04:22]} Rxf2+ {[%emt 0:00:05]} 30. Qxf2 {[%emt 0:00:05]} Qxf2+ {[%emt 0:00:04]} 31. R1g2 {[%emt 0:00:04]} Qe1 {[%emt 0:04:22]} 32. Nd7 {[%emt 0:00:25]} Nf7 {[%emt 0:01:00]} 33. Nf6 {[%emt 0:00:26]} Nh6 {[%emt 0:00:07]} 34. Rg7 {[%emt 0:00:12]} 1-0

[Event "Groningen Festival 2019-A"]
[Site "Groningen"]
[Date "2019.12.29"]
[Round "8.5"]
[White "Krasenkow, Michal"]
[Black "De Jong, Migchiel"]
[Result "1/2-1/2"]
[ECO "B00"]
[WhiteElo "2611"]
[BlackElo "2326"]
[Annotator "ChessBase"]
[PlyCount "126"]
[EventDate "2019.12.15"]
[EventType "swiss"]
[EventCountry "NED"]
[SourceTitle "playchess.com"]
[Source "ChessBase"]
[SourceQuality "1"]
[TimeControl "40/5400+30:1800+30"]

1. Nf3 {[%emt 0:00:00]} b6 {[%emt 0:00:46]} 2. e4 {[%emt 0:00:00]} Bb7 {[%emt 0:00:16]} 3. Nc3 {[%emt 0:00:00]} e6 {[%emt 0:02:23]} 4. d4 {[%emt 0:02:44]} Bb4 {[%emt 0:00:08]} 5. Bd3 {[%emt 0:00:03]} Nf6 {[%emt 0:00:30]} 6. Qe2 {[%emt 0:04:05]} d5 {[%emt 0:00:46]} 7. exd5 {[%emt 0:02:01]} Qxd5 {[%emt 0:00:57]} 8. O-O {[%emt 0:06:05]} Bxc3 {[%emt 0:01:56]} 9. bxc3 {[%emt 0:00:01]} O-O {[%emt 0:02:20]} 10. c4 {[%emt 0:00:59]} Qh5 {[%emt 0:00:52]} 11. Ne5 {[%emt 0:03:48]} Qxe2 {[%emt 0:00:17]} 12. Bxe2 {[%emt 0:00:01]} Nbd7 {[%emt 0:01:01]} 13. f4 {[%emt 0:00:10]} c5 {[%emt 0:01:10]} 14. c3 {[%emt 0:04:53]} Rfd8 {[%emt 0:07:22]} 15. a4 {[%emt 0:03:59]} Ne4 {[%emt 0:03:48]} 16. Bb2 {[%emt 0:01:30]} f6 {[%emt 0:00:49]} 17. Ng4 {[%emt 0:06:53]} Nd2 {[%emt 0:02:46]} 18. Rfd1 {[%emt 0:00:48]} Nb3 {[%emt 0:00:25]} 19. Ra2 {[%emt 0:04:00]} Rac8 {[%emt 0:05:57]} 20. Ne3 {[%emt 0:03:50]} f5 {[%emt 0:08:45]} 21. d5 {[%emt 0:01:16]} g6 {[%emt 0:02:43]} 22. g4 {[%emt 0:23:38]} Nf6 {[%emt 0:05:34]} 23. g5 {[%emt 0:02:59]} Nh5 {[%emt 0:02:22]} 24. Bxh5 {[%emt 0:00:48]} gxh5 {[%emt 0:00:06]} 25. Ba3 {[%emt 0:01:37]} Ba6 {[%emt 0:07:56]} 26. Re1 {[%emt 0:11:10]} Rd6 {[%emt 0:00:21]} 27. Kf2 {[%emt 0:05:27]} Rf8 {[%emt 0:01:09]} 28. a5 {[%emt 0:02:02]} bxa5 {[%emt 0:02:16]} 29. Rb2 {[%emt 0:00:14]} a4 {[%emt 0:03:31]} 30. Rxb3 {[%emt 0:00:06]} axb3 {[%emt 0:00:04]} 31. Bxc5 {[%emt 0:00:06]} Rd7 {[%emt 0:01:16]} 32. Bxf8 {[%emt 0:01:10]} Kxf8 {[%emt 0:00:05]} 33. Rb1 {[%emt 0:05:17]} exd5 {[%emt 0:01:19]} 34. Rxb3 {[%emt 0:03:11]} d4 {[%emt 0:06:24]} 35. cxd4 {[%emt 0:01:14]} Rxd4 {[%emt 0:00:02]} 36. Rb8+ {[%emt 0:00:39]} Kf7 {[%emt 0:00:07]} 37. Ra8 {[%emt 0:00:22]} Rxf4+ {[%emt 0:00:29]} 38. Kg3 {[%emt 0:00:08]} Rf3+ {[%emt 0:00:07]} 39. Kh4 {[%emt 0:00:40]} Bxc4 {[%emt 0:01:44]} 40. Nxc4 {[%emt 0:00:48]} Rf4+ {[%emt 0:00:16]} 41. Kxh5 {[%emt 0:30:02]} Rxc4 {[%emt 0:30:15]} 42. Rxa7+ {[%emt 0:00:01]} Kg8 {[%emt 0:01:35]} 43. Ra5 {[%emt 0:00:54]} f4 {[%emt 0:01:29]} 44. Kg4 {[%emt 0:01:12]} Kg7 {[%emt 0:00:19]} 45. Ra7+ {[%emt 0:00:15]} Kg8 {[%emt 0:02:18]} 46. Ra6 {[%emt 0:00:27]} Kg7 {[%emt 0:01:00]} 47. Rf6 {[%emt 0:00:27]} Rc2 {[%emt 0:02:20]} 48. h4 {[%emt 0:00:17]} Rg2+ {[%emt 0:00:22]} 49. Kxf4 {[%emt 0:01:05]} Rf2+ {[%emt 0:00:10]} 50. Ke5 {[%emt 0:00:06]} Rh2 {[%emt 0:00:26]} 51. Rh6 {[%emt 0:00:19]} Rh1 {[%emt 0:00:53]} 52. Kf5 {[%emt 0:00:17]} Rf1+ {[%emt 0:04:01]} 53. Kg4 {[%emt 0:00:08]} Rg1+ {[%emt 0:00:12]} 54. Kh5 {[%emt 0:00:05]} Ra1 {[%emt 0:00:12]} 55. Rb6 {[%emt 0:00:06]} Ra7 {[%emt 0:00:05]} 56. Rc6 {[%emt 0:02:35]} Rb7 {[%emt 0:00:20]} 57. Ra6 {[%emt 0:00:28]} Rc7 {[%emt 0:00:07]} 58. Ra4 {[%emt 0:00:30]} Rb7 {[%emt 0:02:02]} 59. Kg4 {[%emt 0:00:06]} h6 {[%emt 0:00:11]} 60. Kh5 {[%emt 0:00:12]} hxg5 {[%emt 0:00:09]} 61. hxg5 {[%emt 0:00:01]} Rb6 {[%emt 0:00:23]} 62. Ra7+ {[%emt 0:00:06]} Kg8 {[%emt 0:00:06]} 63. g6 {[%emt 0:00:01]} Rb1 {[%emt 0:00:08]} 1/2-1/2

[Event "Groningen Festival 2019-A"]
[Site "Groningen"]
[Date "2019.12.29"]
[Round "8.6"]
[White "Ernst, Sipke"]
[Black "Zwirs, Nico"]
[Result "1-0"]
[ECO "E11"]
[WhiteElo "2541"]
[BlackElo "2422"]
[Annotator "ChessBase"]
[PlyCount "87"]
[EventDate "2019.12.15"]
[EventType "swiss"]
[EventCountry "NED"]
[SourceTitle "playchess.com"]
[Source "ChessBase"]
[SourceQuality "1"]
[TimeControl "40/5400+30:1800+30"]

1. d4 {[%emt 0:02:26]} Nf6 {[%emt 0:00:18]} 2. c4 {[%emt 0:00:55]} e6 {[%emt 0:00:03]} 3. g3 {[%emt 0:00:05]} d5 {[%emt 0:00:09]} 4. Bg2 {[%emt 0:00:25]} Bb4+ {[%emt 0:00:27]} 5. Bd2 {[%emt 0:01:54]} Be7 {[%emt 0:01:22]} 6. Nf3 {[%emt 0:00:07]} O-O {[%emt 0:00:06]} 7. O-O {[%emt 0:00:03]} c6 {[%emt 0:00:05]} 8. Qc2 {[%emt 0:00:03]} b6 {[%emt 0:00:50]} 9. Rd1 {[%emt 0:00:04]} Nbd7 {[%emt 0:00:31]} 10. b3 {[%emt 0:00:06]} a5 {[%emt 0:00:15]} 11. Bc3 {[%emt 0:02:57]} Ne4 {[%emt 0:00:48]} 12. Ne5 {[%emt 0:02:24]} Nxe5 {[%emt 0:02:04]} 13. Bxe4 {[%emt 0:00:06]} f5 {[%emt 0:00:18]} 14. Bg2 {[%emt 0:03:47]} Ng4 {[%emt 0:03:49]} 15. Be1 {[%emt 0:02:08]} Bd6 {[%emt 0:15:11]} 16. Nc3 {[%emt 0:08:44]} Ra7 {[%emt 0:34:38]} 17. Na4 {[%emt 0:00:38]} f4 {[%emt 0:02:03]} 18. Rd3 {[%emt 0:12:29]} Raf7 {[%emt 0:05:22]} 19. Nxb6 {[%emt 0:06:17]} Nxf2 {[%emt 0:09:02]} 20. Bxf2 {[%emt 0:05:28]} fxg3 {[%emt 0:00:12]} 21. hxg3 {[%emt 0:08:46]} Qxb6 {[%emt 0:07:01]} 22. c5 {[%emt 0:03:30]} Qa7 {[%emt 0:02:14]} 23. cxd6 {[%emt 0:00:41]} Rxf2 {[%emt 0:00:01]} 24. Bf3 {[%emt 0:03:30]} R8xf3 {[%emt 0:00:16]} 25. Rxf3 {[%emt 0:00:07]} Rxf3 {[%emt 0:00:05]} 26. exf3 {[%emt 0:00:04]} Qxd4+ {[%emt 0:00:08]} 27. Kg2 {[%emt 0:00:23]} Bd7 {[%emt 0:12:03]} 28. Rh1 {[%emt 0:11:21]} h6 {[%emt 0:00:29]} 29. Rh5 {[%emt 0:03:09]} Qb4 {[%emt 0:02:26]} 30. Rxh6 {[%emt 0:02:24]} gxh6 {[%emt 0:00:26]} 31. Qg6+ {[%emt 0:00:04]} Kh8 {[%emt 0:00:05]} 32. Qf6+ {[%emt 0:00:03]} Kh7 {[%emt 0:00:05]} 33. Qf7+ {[%emt 0:00:04]} Kh8 {[%emt 0:00:10]} 34. Qxd7 {[%emt 0:00:09]} Qd2+ {[%emt 0:00:12]} 35. Kh3 {[%emt 0:00:04]} Qe2 {[%emt 0:01:42]} 36. Qf7 {[%emt 0:01:57]} Qf1+ {[%emt 0:00:53]} 37. Kg4 {[%emt 0:00:20]} Qc1 {[%emt 0:00:30]} 38. Qf6+ {[%emt 0:00:19]} Kh7 {[%emt 0:00:07]} 39. Qe7+ {[%emt 0:00:06]} Kg6 {[%emt 0:00:17]} 40. Qxe6+ {[%emt 0:00:04]} Kg7 {[%emt 0:00:07]} 41. Qe7+ {[%emt 0:30:08]} Kg6 {[%emt 0:30:09]} 42. Qe8+ {[%emt 0:00:42]} Kf6 {[%emt 0:02:14]} 43. Qf8+ {[%emt 0:01:32]} Ke6 {[%emt 0:00:00]} 44. Qe7# {[%emt 0:00:04]} 1-0

[Event "Groningen Festival 2019-A"]
[Site "Groningen"]
[Date "2019.12.29"]
[Round "8.7"]
[White "Zhou, Guijue"]
[Black "Beerdsen, Thomas"]
[Result "0-1"]
[ECO "B22"]
[WhiteElo "2238"]
[BlackElo "2482"]
[Annotator "ChessBase"]
[PlyCount "104"]
[EventDate "2019.12.15"]
[EventType "swiss"]
[EventCountry "NED"]
[SourceTitle "playchess.com"]
[Source "ChessBase"]
[SourceQuality "1"]
[TimeControl "40/5400+30:1800+30"]

1. e4 {[%emt 0:00:00]} c5 {[%emt 0:00:02]} 2. Nf3 {[%emt 0:00:00]} e6 {[%emt 0:00:09]} 3. c3 {[%emt 0:00:00]} d5 {[%emt 0:00:59]} 4. exd5 {[%emt 0:00:00]} Qxd5 {[%emt 0:00:06]} 5. d4 {[%emt 0:00:00]} Nf6 {[%emt 0:01:22]} 6. Na3 {[%emt 0:00:05]} Nc6 {[%emt 0:04:32]} 7. Be3 {[%emt 0:00:06]} cxd4 {[%emt 0:01:07]} 8. Nb5 {[%emt 0:00:04]} Qd7 {[%emt 0:01:25]} 9. Nbxd4 {[%emt 0:00:07]} Be7 {[%emt 0:03:05]} 10. Nxc6 {[%emt 0:11:23]} Qxc6 {[%emt 0:00:37]} 11. Ne5 {[%emt 0:03:55]} Qe4 {[%emt 0:14:11]} 12. Bb5+ {[%emt 0:03:22]} Kf8 {[%emt 0:00:14]} 13. Nf3 {[%emt 0:02:17]} Nd5 {[%emt 0:03:43]} 14. Bd3 {[%emt 0:06:32]} Qg4 {[%emt 0:03:39]} 15. O-O {[%emt 0:00:26]} Nf4 {[%emt 0:04:51]} 16. Bxf4 {[%emt 0:00:19]} Qxf4 {[%emt 0:00:05]} 17. Re1 {[%emt 0:00:55]} Bf6 {[%emt 0:02:52]} 18. Re4 {[%emt 0:06:43]} Qd6 {[%emt 0:02:59]} 19. Bc2 {[%emt 0:04:55]} Qc7 {[%emt 0:04:07]} 20. Qe2 {[%emt 0:05:23]} Bd7 {[%emt 0:01:08]} 21. Ba4 {[%emt 0:02:36]} Rd8 {[%emt 0:04:20]} 22. Rc4 {[%emt 0:03:14]} Qb8 {[%emt 0:03:45]} 23. Bxd7 {[%emt 0:04:36]} Rxd7 {[%emt 0:00:15]} 24. Rd1 {[%emt 0:00:43]} Rxd1+ {[%emt 0:00:50]} 25. Qxd1 {[%emt 0:00:03]} Ke7 {[%emt 0:00:20]} 26. Qb3 {[%emt 0:00:03]} Rd8 {[%emt 0:00:50]} 27. g3 {[%emt 0:00:50]} Rd7 {[%emt 0:01:18]} 28. a4 {[%emt 0:01:00]} Qd6 {[%emt 0:01:48]} 29. Nd4 {[%emt 0:00:11]} g6 {[%emt 0:01:23]} 30. Nb5 {[%emt 0:03:11]} Qd1+ {[%emt 0:00:23]} 31. Qxd1 {[%emt 0:00:04]} Rxd1+ {[%emt 0:00:04]} 32. Kg2 {[%emt 0:00:08]} a6 {[%emt 0:01:22]} 33. Rc7+ {[%emt 0:02:05]} Rd7 {[%emt 0:00:57]} 34. Rxd7+ {[%emt 0:00:04]} Kxd7 {[%emt 0:00:04]} 35. Na3 {[%emt 0:00:03]} Kc6 {[%emt 0:00:40]} 36. Kf3 {[%emt 0:04:53]} Kd5 {[%emt 0:02:35]} 37. Ke3 {[%emt 0:00:49]} Bg5+ {[%emt 0:06:43]} 38. Kd3 {[%emt 0:03:17]} e5 {[%emt 0:01:07]} 39. b3 {[%emt 0:01:07]} e4+ {[%emt 0:04:43]} 40. Ke2 {[%emt 0:00:26]} Bf6 {[%emt 0:02:06]} 41. Kd2 {[%emt 0:30:14]} Be7 {[%emt 0:32:27]} 42. Nc4 {[%emt 0:00:44]} f5 {[%emt 0:02:33]} 43. Ne3+ {[%emt 0:00:43]} Ke6 {[%emt 0:01:05]} 44. Nc4 {[%emt 0:01:03]} h5 {[%emt 0:02:10]} 45. h3 {[%emt 0:02:13]} h4 {[%emt 0:04:57]} 46. gxh4 {[%emt 0:02:38]} Bxh4 {[%emt 0:06:54]} 47. Ke2 {[%emt 0:00:29]} Bf6 {[%emt 0:00:15]} 48. Kd2 {[%emt 0:00:35]} f4 {[%emt 0:00:54]} 49. Kc2 {[%emt 0:06:04]} Bh4 {[%emt 0:03:23]} 50. Kd2 {[%emt 0:05:19]} Bxf2 {[%emt 0:00:11]} 51. Ke2 {[%emt 0:00:03]} Ba7 {[%emt 0:00:25]} 52. Na5 {[%emt 0:00:53]} f3+ {[%emt 0:00:05]} 0-1

[Event "Groningen Festival 2019-A"]
[Site "Groningen"]
[Date "2019.12.29"]
[Round "8.9"]
[White "Hilverda, Alexander"]
[Black "Davtyan, Artur"]
[Result "0-1"]
[ECO "E01"]
[WhiteElo "2294"]
[BlackElo "2437"]
[Annotator "NA"]
[PlyCount "46"]
[EventDate "2019.12.15"]
[EventType "swiss"]
[EventCountry "NED"]
[SourceTitle "playchess.com"]
[Source "ChessBase"]
[SourceQuality "1"]
[TimeControl "40/5400+30:1800+30"]

1. d4 {[%emt 0:07:43]} d5 {[%emt 0:07:38]} 2. c4 {[%emt 0:00:00]} c6 {[%emt 0:00:25]} 3. Nf3 {[%emt 0:00:00]} Nf6 {[%emt 0:00:16]} 4. Nc3 {[%emt 0:00:00]} e6 {[%emt 0:00:09]} 5. g3 {[%emt 0:00:00]} dxc4 {[%emt 0:00:53]} 6. Bg2 {[%emt 0:00:00]} Nbd7 {[%emt 0:00:09]} 7. O-O {[%emt 0:00:00]} b5 {[%emt 0:00:13]} 8. e4 {[%emt 0:00:00]} b4 {[%emt 0:03:39]} 9. Na4 {[%emt 0:00:00]} Be7 {[%emt 0:00:53]} 10. Qc2 {[%emt 0:19:20]} Ba6 {[%emt 0:02:48]} 11. Re1 {[%emt 0:06:19]} O-O {[%emt 0:02:22]} 12. Bg5 {[%emt 0:02:26]} Bb5 {[%emt 0:09:19]} 13. Nc5 {[%emt 0:10:58]} Nxc5 {[%emt 0:08:45]} 14. dxc5 {[%emt 0:00:58]} Nd7 {[%emt 0:00:05]} 15. Red1 {[%emt 0:32:45]} Bxg5 {[%emt 0:00:56]} 16. Nxg5 {[%emt 0:03:01]} Qxg5 {[%emt 0:00:48]} 17. Rxd7 {[%emt 0:00:05]} Rad8 {[%emt 0:07:19]} 18. Rad1 {[%emt 0:00:21]} Rxd7 {[%emt 0:00:01]} 19. Rxd7 {[%emt 0:00:09]} Qxc5 {[%emt 0:00:02]} 20. Bf1 {[%emt 0:01:22]} g6 {[%emt 0:01:48]} 21. Rd1 {[%emt 0:01:48]} c3 {[%emt 0:00:51]} 22. bxc3 {[%emt 0:01:29]} bxc3 {[%emt 0:00:02]} 23. Rc1 {[%emt 0:01:26]} Rd8 {[%emt 0:00:15]} 0-1